bitfinex-derivatives/quotes_SOLF0:USTF0_20260207
["timestamp","ask_amount","ask_price","bid_price","bid_amount"]
[1770461276347,3.73492498,84.76,84.72,5.01426175]
[1770461279360,3.73492498,84.76,84.713,3.8512503]
[1770461279756,2.05357591,84.8,84.713,3.8512503]
[1770461279757,5.01426175,84.75,84.713,3.8512503]
[1770461280063,3.73492498,84.758,84.713,3.8512503]
[1770461280454,8.74918673,84.75,84.713,3.8512503]
[1770461280652,8.74918673,84.75,84.703,10.6314]
[1770461280653,3.73492498,84.749,84.703,10.6314]
[1770461280962,3.73492498,84.749,84.704,3.8512503]
[1770461281561,3.73492498,84.749,84.71,8.86551205]
[1770461282156,3.73492498,84.749,84.712,3.8512503]
[1770461283660,5.01426175,84.76,84.716,3.8512503]
[1770461283854,3.73492498,84.778,84.731,3.8512503]
[1770461286869,3.93799872,84.769,84.731,3.8512503]
[1770461287266,3.93799872,84.759,84.72,3.82143921]
[1770461288166,3.93799872,84.759,84.667,21.79680582]
[1770461288167,3.93799872,84.749,84.708,3.82143921]
[1770461288771,3.93799872,84.749,84.71,5.01426175]
[1770461288969,3.93799872,84.749,84.71,8.83570096]
[1770461289473,3.93799872,84.749,84.711,3.82143921]
[1770461291272,10.6241,84.762,84.721,3.61241534]
[1770461291273,3.64157963,84.762,84.721,3.61241534]
[1770461293672,3.64157963,84.777,84.731,3.61241534]
[1770461295778,3.64157963,84.769,84.731,3.61241534]
[1770461296979,3.64157963,84.769,84.69,14.52476603]
[1770461296980,3.64157963,84.759,84.719,3.61241534]
[1770461297179,3.64157963,84.749,84.701,3.61241534]
[1770461297679,3.64157963,84.746,84.701,3.61241534]
[1770461299476,3.64157963,84.739,84.69,8.62806227]
[1770461300071,3.64157963,84.739,84.651,21.79680582]
[1770461300072,3.64157963,84.729,84.68,5.01564693]
[1770461300277,3.64157963,84.719,84.674,3.61241534]
[1770461301581,3.64157963,84.719,84.661,3.61241534]
[1770461301977,3.64157963,84.699,84.65,5.01564693]
[1770461302175,3.64157963,84.699,84.651,3.61241534]
[1770461302387,3.64157963,84.699,84.66,5.01564693]
[1770461302886,3.64157963,84.699,84.66,8.62806227]
[1770461304790,3.64157963,84.699,84.661,3.61241534]
[1770461308887,3.64157963,84.679,84.634,3.61241534]
[1770461309593,3.64157963,84.679,84.64,5.01564693]
[1770461309993,3.64157963,84.679,84.64,8.62806227]
[1770461310592,3.64157963,84.679,84.64,3.61241534]
[1770461311993,3.64157963,84.679,84.64,8.62806227]
[1770461312198,3.64157963,84.679,84.641,3.61241534]
[1770461312895,21.255,84.735,84.598,13.0590435]
[1770461312896,3.64157963,84.706,84.661,3.61241534]
[1770461313095,3.64157963,84.706,84.67,5.01564693]
[1770461313606,3.64157963,84.706,84.661,3.61241534]
[1770461314198,3.64157963,84.718,84.671,3.61241534]
[1770461314500,8.65722656,84.71,84.671,3.61241534]
[1770461315097,3.64157963,84.709,84.671,3.61241534]
[1770461315297,3.64157963,84.709,84.66,5.01564693]
[1770461315499,3.64157963,84.699,84.65,5.01564693]
[1770461315792,3.64157963,84.699,84.65,8.62806227]
[1770461316691,3.76906014,84.689,84.65,3.61241534]
[1770461316893,3.76906014,84.689,84.64,5.01564693]
[1770461317100,3.76906014,84.689,84.64,8.71023248]
[1770461317691,3.76906014,84.678,84.64,3.69458555]
[1770461319800,3.76906014,84.678,84.64,8.71023248]
[1770461320199,3.76906014,84.669,84.599,3.69458555]
[1770461320397,3.76906014,84.669,84.62,5.01564693]
[1770461320602,10.90021129,84.716,84.612,3.69458555]
[1770461320603,3.76906014,84.659,84.612,3.69458555]
[1770461320797,10.6381,84.651,84.612,3.69458555]
[1770461321501,3.76906014,84.647,84.601,3.69458555]
[1770461321704,5.01564693,84.64,84.601,3.69458555]
[1770461321903,5.01564693,84.64,84.59,5.01564693]
[1770461321904,3.76906014,84.639,84.59,5.01564693]
[1770461322095,3.76906014,84.629,84.591,3.69458555]
[1770461322296,5.01564693,84.62,84.577,3.69458555]
[1770461322505,3.76906014,84.629,84.58,5.01564693]
[1770461322909,3.76906014,84.619,84.577,3.69458555]
[1770461323706,165.4555,84.664,84.563,3.69458555]
[1770461323707,3.76906014,84.608,84.563,3.69458555]
[1770461325105,5.01564693,84.63,84.581,3.69458555]
[1770461325303,8.78470707,84.62,84.581,3.69458555]
[1770461325609,10.6468,84.581,84.531,3.69458555]
[1770461326113,10.6477,84.574,84.531,3.69458555]
[1770461326408,3.76906014,84.58,84.531,3.69458555]
[1770461327210,3.76906014,84.58,84.48,62.0]
[1770461327211,5.01564693,84.56,84.516,3.69458555]
[1770461327401,3.76906014,84.569,84.481,3.69458555]
[1770461327607,3.76906014,84.554,84.485,3.69458555]
[1770461327802,21.2859,84.612,84.45,14.99760605]
[1770461327803,3.76906014,84.579,84.501,3.69458555]
[1770461328204,3.76906014,84.579,84.5,14.99760605]
[1770461328205,3.76906014,84.575,84.505,3.69458555]
[1770461328814,14.99760605,84.6,84.478,2.05856256]
[1770461328815,3.76906014,84.591,84.521,3.69458555]
[1770461329010,10.646,84.588,84.521,3.69458555]
[1770461329914,10.646,84.588,84.527,3.69458555]
[1770461330116,14.41506014,84.588,84.527,3.69458555]
[1770461332118,3.76906014,84.602,84.534,3.69458555]
[1770461333217,10.6445,84.599,84.536,3.69458555]
[1770461333418,3.76906014,84.598,84.541,3.69458555]
[1770461334014,10.645,84.596,84.541,3.69458555]
[1770461334317,3.76906014,84.595,84.525,3.69458555]
[1770461335319,3.76906014,84.593,84.525,3.69458555]
[1770461337417,3.76906014,84.593,84.535,3.69458555]
[1770461338218,3.76906014,84.589,84.535,3.69458555]
[1770461339526,3.76906014,84.589,84.537,3.69458555]
[1770461339918,3.76906014,84.589,84.511,3.69458555]
[1770461340422,3.76906014,84.582,84.516,3.69458555]
[1770461341125,3.76906014,84.582,84.52,3.69458555]
[1770461341822,3.76906014,84.582,84.54,14.34648555]
[1770461342223,3.76906014,84.597,84.541,3.69458555]
[1770461342525,3.76906014,84.597,84.544,3.69458555]
[1770461342726,3.76906014,84.61,84.551,3.69458555]
[1770461343322,3.76906014,84.61,84.573,10.6478]
[1770461343517,3.76906014,84.629,84.573,10.6478]
[1770461343724,3.76906014,84.649,84.586,3.69458555]
[1770461343930,3.76906014,84.649,84.591,3.69458555]
[1770461344316,14.99760605,84.69,84.61,14.99760605]
[1770461344517,3.76906014,84.669,84.611,3.69458555]
[1770461345225,3.76906014,84.669,84.61,14.99760605]
[1770461345226,3.76906014,84.669,84.612,14.33748555]
[1770461345626,3.76906014,84.669,84.613,3.69458555]
[1770461346225,3.67074764,84.661,84.601,10.6442]
[1770461346431,3.67074764,84.661,84.598,3.88887986]
[1770461346931,10.6369,84.66,84.6,10.6444]
[1770461347129,3.67074764,84.659,84.601,3.88887986]
[1770461348033,3.67074764,84.655,84.601,3.88887986]
[1770461348331,3.67074764,84.655,84.58,14.99760605]
[1770461348332,3.67074764,84.649,84.581,3.88887986]
[1770461348927,3.67074764,84.635,84.581,3.88887986]
[1770461349119,21.2643,84.698,84.512,331.2519]
[1770461349120,3.67074764,84.629,84.564,3.88887986]
[1770461349630,3.67074764,84.622,84.564,3.88887986]
[1770461350731,3.77065734,84.619,84.564,3.88887986]
[1770461351626,3.77065734,84.619,84.567,3.81735335]
[1770461352726,3.77065734,84.619,84.57,10.6482]
[1770461353533,3.77065734,84.633,84.575,3.81735335]
[1770461353929,14.97572022,84.65,84.545,3.81735335]
[1770461353930,3.77065734,84.619,84.545,3.81735335]
[1770461354627,10.6441,84.603,84.545,3.81735335]
[1770461354833,3.77065734,84.603,84.549,3.81735335]
[1770461355234,3.77065734,84.598,84.538,10.6521]
[1770461355432,3.77065734,84.598,84.539,3.81735335]
[1770461356138,3.77065734,84.598,84.542,3.81735335]
[1770461356335,10.6451,84.595,84.542,3.81735335]
[1770461358037,10.6461,84.587,84.542,3.81735335]
[1770461358234,3.77065734,84.594,84.513,10.6554]
[1770461358531,3.77065734,84.579,84.514,3.81735335]
[1770461358935,3.77065734,84.569,84.514,3.81735335]
[1770461360038,3.77065734,84.569,84.521,3.81735335]
[1770461360837,3.77065734,84.566,84.501,3.81735335]
[1770461362137,3.77065734,84.566,84.504,3.81735335]
[1770461362537,3.77065734,84.566,84.511,3.81735335]
[1770461362737,3.77065734,84.583,84.524,3.81735335]
[1770461362944,3.77065734,84.583,84.531,3.81735335]
[1770461363342,3.77065734,84.599,84.533,3.81735335]
[1770461363546,3.77065734,84.599,84.551,3.81735335]
[1770461365039,3.77065734,84.613,84.551,3.81735335]
[1770461365546,10.6446,84.599,84.551,3.81735335]
[1770461365939,3.77065734,84.613,84.551,3.81735335]
[1770461366143,3.77065734,84.613,84.553,3.81735335]
[1770461366845,3.77065734,84.611,84.553,3.81735335]
[1770461367236,3.77065734,84.609,84.553,3.81735335]
[1770461368141,3.77065734,84.601,84.533,10.6528]
[1770461368341,3.77065734,84.601,84.53,14.97572022]
[1770461368342,3.77065734,84.601,84.534,3.81735335]
[1770461368846,3.77065734,84.585,84.534,3.81735335]
[1770461369743,3.77065734,84.583,84.534,3.81735335]
[1770461371854,10.6474,84.577,84.534,3.81735335]
[1770461374052,3.77065734,84.583,84.534,3.81735335]
[1770461374256,10.76078154,84.614,84.534,3.81735335]
[1770461374257,3.77065734,84.597,84.534,3.81735335]
[1770461375050,3.77065734,84.612,84.551,3.81735335]
[1770461375759,3.77065734,84.612,84.55,14.97572022]
[1770461375760,3.77065734,84.612,84.562,3.92346588]
[1770461375960,3.86493046,84.625,84.562,3.92346588]
[1770461376361,10.6416,84.623,84.564,10.6489]
[1770461376558,3.86493046,84.622,84.565,3.92346588]
[1770461377862,3.86493046,84.619,84.565,3.92346588]
[1770461379460,10.6424,84.617,84.567,3.92346588]
[1770461381057,3.86493046,84.608,84.552,3.92346588]
[1770461381663,3.86493046,84.628,84.554,3.92346588]
[1770461382857,10.6415,84.623,84.567,3.92346588]
[1770461383164,3.86493046,84.642,84.571,3.92346588]
[1770461383361,3.86493046,84.656,84.59,14.97572022]
[1770461383565,3.86493046,84.656,84.591,3.92346588]
[1770461383966,3.86493046,84.676,84.611,3.92346588]
[1770461385056,3.86493046,84.676,84.623,3.92346588]
[1770461386665,3.86493046,84.676,84.57,35.51]
[1770461386666,3.86493046,84.673,84.611,3.92346588]
[1770461387867,3.86493046,84.667,84.611,3.92346588]
[1770461389068,3.86493046,84.667,84.56,21.2988]
[1770461389069,3.86493046,84.682,84.621,3.92346588]
[1770461389865,3.86493046,84.682,84.628,3.92346588]
[1770461391065,3.86493046,84.677,84.61,3.92346588]
[1770461391271,3.86493046,84.669,84.61,3.92346588]
[1770461391665,3.86493046,84.665,84.61,3.92346588]
[1770461395773,10.6347,84.677,84.613,3.92346588]
[1770461396569,3.86493046,84.679,84.626,3.92346588]
[1770461398674,3.86493046,84.679,84.633,10.6402]
[1770461399075,3.86493046,84.679,84.626,3.92346588]
[1770461399475,10.6333,84.689,84.629,3.92346588]
[1770461399678,3.86493046,84.694,84.641,3.92346588]
[1770461400674,10.631,84.707,84.661,3.92346588]
[1770461401480,10.6295,84.719,84.665,3.92346588]
[1770461401681,3.86493046,84.727,84.665,3.92346588]
[1770461402168,3.86493046,84.727,84.676,3.92346588]
[1770461403078,10.6289,84.724,84.676,3.92346588]
[1770461403275,3.86493046,84.727,84.681,3.92346588]
[1770461403481,3.86493046,84.749,84.681,3.92346588]
[1770461403783,180.16602022,84.8,84.68,14.97572022]
[1770461403784,14.49073046,84.748,84.693,3.92346588]
[1770461404176,3.86493046,84.748,84.693,3.92346588]
[1770461404976,3.86493046,84.746,84.68,14.97572022]
[1770461405182,3.86493046,84.746,84.681,3.92346588]
[1770461405678,10.6238,84.764,84.701,3.92346588]
[1770461405875,3.86493046,84.763,84.701,3.92346588]
[1770461406776,3.86493046,84.763,84.705,3.79247045]
[1770461407784,3.69003899,84.784,84.728,3.79247045]
[1770461408686,3.69003899,84.782,84.728,3.79247045]
[1770461411684,3.69003899,84.782,84.728,14.42067045]
[1770461411885,3.69003899,84.782,84.729,3.78128688]
[1770461412686,10.6195,84.799,84.742,10.6265]
[1770461412892,3.97981005,84.798,84.742,10.6265]
[1770461413387,3.97981005,84.796,84.741,3.78128688]
[1770461413890,3.97981005,84.785,84.741,3.78128688]
[1770461414782,10.6197,84.797,84.744,3.78128688]
[1770461415185,3.97981005,84.802,84.751,3.78128688]
[1770461415988,3.97981005,84.802,84.751,14.40668688]
[1770461416687,35.51,84.861,84.75,14.91347807]
[1770461416688,3.97981005,84.839,84.771,3.78128688]
[1770461417085,14.91347807,84.84,84.771,3.78128688]
[1770461417086,3.97981005,84.828,84.771,3.78128688]
[1770461417588,3.97981005,84.825,84.771,3.78128688]
[1770461417991,3.97981005,84.819,84.756,10.6248]
[1770461418187,3.97981005,84.819,84.767,10.6234]
[1770461418388,3.97981005,84.819,84.757,3.78128688]
[1770461419794,3.97981005,84.818,84.758,3.78128688]
[1770461420185,3.97981005,84.818,84.75,14.91347807]
[1770461420186,3.97981005,84.818,84.769,10.6231]
[1770461420491,3.97981005,84.818,84.75,14.91347807]
[1770461420492,3.97981005,84.818,84.77,3.78128688]
[1770461422889,3.97981005,84.818,84.756,3.78128688]
[1770461423289,3.97981005,84.815,84.756,3.78128688]
[1770461423494,3.97981005,84.815,84.759,3.78128688]
[1770461424789,10.6176,84.814,84.759,3.78128688]
[1770461425294,10.6181,84.81,84.759,3.78128688]
[1770461425496,14.59791005,84.81,84.759,3.78128688]
[1770461426098,14.59791005,84.81,84.765,3.78128688]
[1770461426099,3.97981005,84.81,84.765,3.78128688]
[1770461426400,3.97981005,84.823,84.765,3.78128688]
[1770461426800,14.59651005,84.821,84.77,3.78128688]
[1770461427702,3.97981005,84.82,84.77,3.78128688]
[1770461427902,3.97981005,84.82,84.772,10.6227]
[1770461429497,3.97981005,84.82,84.775,3.78128688]
[1770461429702,3.97981005,84.836,84.775,3.78128688]
[1770461430802,3.97981005,84.836,84.793,10.6202]
[1770461432104,3.97981005,84.851,84.798,3.78128688]
[1770461432905,3.97981005,84.847,84.798,3.78128688]
[1770461434005,3.97981005,84.847,84.8,14.40048688]
[1770461434513,3.97981005,84.862,84.811,3.78128688]
[1770461435711,3.97981005,84.862,84.813,10.6176]
[1770461437010,3.67499178,84.876,84.814,3.60626159]
[1770461437201,3.67499178,84.891,84.828,3.60626159]
[1770461437406,3.67499178,84.891,84.831,3.60626159]
[1770461437815,3.67499178,84.891,84.83,14.91347807]
[1770461437816,3.67499178,84.891,84.837,3.60626159]
[1770461438003,3.67499178,84.907,84.841,3.60626159]
[1770461438207,3.67499178,84.907,84.8,14.91347807]
[1770461438208,3.67499178,84.945,84.886,3.60626159]
[1770461439116,3.67499178,84.929,84.861,3.60626159]
[1770461439409,3.67499178,84.927,84.861,3.60626159]
[1770461439905,3.67499178,84.924,84.84,14.91347807]
[1770461440105,3.67499178,84.924,84.846,3.60626159]
[1770461440812,3.67499178,84.921,84.851,3.60626159]
[1770461441308,3.67499178,84.918,84.851,3.60626159]
[1770461441907,3.67499178,84.918,84.84,14.91347807]
[1770461441908,3.67499178,84.918,84.855,3.60626159]
[1770461442109,3.67499178,84.939,84.861,3.60626159]
[1770461442311,3.67499178,84.939,84.871,3.60626159]
[1770461442703,3.67499178,84.939,84.877,3.60626159]
[1770461443713,3.67499178,84.939,84.882,10.609]
[1770461443911,3.67499178,84.939,84.883,3.60626159]
[1770461444309,3.67499178,84.959,84.891,3.60626159]
[1770461445314,3.67499178,84.959,84.893,3.60626159]
[1770461445706,14.27579178,84.949,84.893,3.60626159]
[1770461445910,3.67499178,84.948,84.893,3.60626159]
[1770461447518,3.67499178,84.948,84.87,14.91347807]
[1770461447519,3.67499178,84.946,84.877,3.60626159]
[1770461448614,10.6018,84.941,84.882,3.60626159]
[1770461448814,3.67499178,84.94,84.851,3.60626159]
[1770461449814,3.67499178,84.937,84.87,3.60626159]
[1770461450314,3.67499178,84.934,84.87,3.60626159]
[1770461451218,3.67499178,84.934,84.872,3.60626159]
[1770461451422,3.67499178,84.949,84.891,3.60626159]
[1770461452824,3.67499178,84.947,84.891,3.60626159]
[1770461454121,14.27609178,84.946,84.891,3.60626159]
[1770461454317,14.27609178,84.946,84.851,35.51]
[1770461454318,3.67499178,84.985,84.911,3.60626159]
[1770461454524,10.5967,84.981,84.931,3.60626159]
[1770461454725,3.67499178,84.98,84.931,3.60626159]
[1770461455423,3.67499178,84.977,84.916,3.60626159]
[1770461455613,3.67499178,84.969,84.901,3.60626159]
[1770461455818,3.67499178,84.949,84.871,3.60626159]
[1770461456018,10.601,84.947,84.888,10.6082]
[1770461456222,3.67499178,84.946,84.888,14.21446159]
[1770461456426,3.67499178,84.946,84.889,3.60626159]
[1770461457234,10.6012,84.945,84.889,3.60626159]
[1770461457620,3.67499178,84.946,84.889,3.60626159]
[1770461458024,3.67499178,84.946,84.891,3.60626159]
[1770461460328,3.67499178,84.939,84.876,3.60626159]
[1770461460729,3.67499178,84.939,84.893,3.60626159]
[1770461461726,3.67499178,84.939,84.894,10.6075]
[1770461462133,3.67499178,84.939,84.893,3.60626159]
[1770461464626,3.67499178,84.939,84.884,10.6087]
[1770461466930,3.67499178,84.939,84.884,14.53267565]
[1770461467331,3.67499178,84.939,84.897,10.6072]
[1770461467730,3.67499178,84.939,84.885,3.92397565]
[1770461468735,3.67499178,84.939,84.887,10.6083]
[1770461469129,3.67499178,84.939,84.887,14.53227565]
[1770461469730,3.67499178,84.939,84.888,3.85153915]
[1770461470833,3.87207495,84.929,84.871,3.85153915]
[1770461471030,3.87207495,84.929,84.856,3.85153915]
[1770461471738,3.87207495,84.908,84.856,3.85153915]
[1770461472641,3.87207495,84.893,84.833,3.85153915]
[1770461472834,3.87207495,84.889,84.813,3.85153915]
[1770461473739,3.87207495,84.87,84.817,10.6171]
[1770461474641,3.87207495,84.87,84.817,14.46863915]
[1770461474835,3.87207495,84.87,84.823,10.6164]
[1770461475233,3.87207495,84.87,84.824,3.85153915]
[1770461475442,14.48267495,84.87,84.824,3.85153915]
[1770461475636,3.87207495,84.869,84.824,3.85153915]
[1770461476344,3.87207495,84.869,84.811,3.85153915]
[1770461476345,10.6108,84.868,84.811,3.85153915]
[1770461476643,3.87207495,84.867,84.811,3.85153915]
[1770461477644,10.6135,84.846,84.811,3.85153915]
[1770461477944,3.87207495,84.867,84.811,3.85153915]
[1770461479748,3.87207495,84.866,84.811,3.85153915]
[1770461480847,3.87207495,84.862,84.811,3.85153915]
[1770461482246,10.6121,84.858,84.811,3.85153915]
[1770461482546,3.87207495,84.849,84.771,3.85153915]
[1770461482948,3.87207495,84.836,84.771,3.85153915]
[1770461483453,3.87207495,84.836,84.77,25.51082979]
[1770461483454,3.87207495,84.836,84.775,3.85153915]
[1770461484456,3.87207495,84.834,84.777,3.85153915]
[1770461484948,10.6157,84.829,84.777,3.85153915]
[1770461486655,3.87207495,84.826,84.777,3.85153915]
[1770461486849,3.87207495,84.826,84.763,3.85153915]
[1770461487755,3.87207495,84.826,84.771,3.85153915]
[1770461488447,14.48567495,84.846,84.791,3.85153915]
[1770461488647,3.87207495,84.846,84.791,3.85153915]
[1770461488852,3.87207495,84.869,84.791,3.85153915]
[1770461489356,3.87207495,84.863,84.811,3.85153915]
[1770461490752,3.87207495,84.863,84.816,3.85153915]
[1770461490951,3.87207495,84.909,84.831,3.85153915]
[1770461491547,10.6077,84.893,84.84,3.85153915]
[1770461491753,3.87207495,84.892,84.84,3.85153915]
[1770461492350,10.6097,84.878,84.84,3.85153915]
[1770461492556,3.87207495,84.877,84.822,3.85153915]
[1770461492860,10.61,84.875,84.823,10.6164]
[1770461493062,3.87207495,84.874,84.822,3.85153915]
[1770461493558,10.6116,84.862,84.822,3.85153915]
[1770461496159,10.6104,84.872,84.822,3.85153915]
[1770461496359,3.87207495,84.874,84.822,3.85153915]
[1770461496762,14.48207495,84.874,84.822,3.85153915]
[1770461497265,10.609,84.883,84.827,3.90094614]
[1770461498355,10.6096,84.878,84.828,10.6157]
[1770461498555,10.6096,84.878,84.828,14.51664614]
[1770461498757,10.6096,84.878,84.829,3.90094614]
[1770461499558,10.6108,84.868,84.829,3.90094614]
[1770461499763,3.96725693,84.882,84.829,3.90094614]
[1770461500264,10.6098,84.877,84.829,3.90094614]
[1770461500463,3.96725693,84.876,84.829,3.90094614]
[1770461500864,3.96725693,84.861,84.801,3.90094614]
[1770461501768,3.96725693,84.861,84.81,10.618]
[1770461502075,3.96725693,84.861,84.801,3.90094614]
[1770461502461,10.6106,84.87,84.816,3.90094614]
[1770461502658,10.6106,84.87,84.76,165.2666]
[1770461502659,3.96725693,84.877,84.821,3.90094614]
[1770461503273,3.96725693,84.877,84.833,10.6151]
[1770461508164,3.96725693,84.877,84.833,14.51604614]
[1770461508367,10.6086,84.886,84.836,3.90094614]
[1770461508564,10.609,84.883,84.836,3.90094614]
[1770461508764,3.96725693,84.883,84.836,3.90094614]
[1770461509866,3.96725693,84.883,84.839,3.90094614]
[1770461510268,3.96725693,84.897,84.841,3.90094614]
[1770461511478,3.96725693,84.91,84.852,3.90094614]
[1770461511674,14.88772979,84.94,84.861,3.90094614]
[1770461511675,3.96725693,84.935,84.861,3.90094614]
[1770461511875,14.57175693,84.919,84.865,3.90094614]
[1770461512081,3.96725693,84.918,84.865,3.90094614]
[1770461512371,3.96725693,84.918,84.827,10.92721316]
[1770461512372,3.96725693,84.914,84.851,3.90094614]
[1770461512968,10.6072,84.897,84.851,3.90094614]
[1770461513779,3.96725693,84.901,84.851,3.90094614]
[1770461514074,3.96725693,84.919,84.851,3.90094614]
[1770461515778,10.6049,84.915,84.864,3.90094614]
[1770461515980,3.96725693,84.919,84.864,3.90094614]
[1770461516581,3.96725693,84.919,84.866,3.90094614]
[1770461517678,3.96725693,84.919,84.869,10.6106]
[1770461517877,3.96725693,84.919,84.869,14.51154614]
[1770461519369,3.96725693,84.919,84.872,10.6102]
[1770461521178,3.96725693,84.919,84.87,3.90094614]
[1770461521478,3.96725693,84.919,84.862,10.6114]
[1770461521479,3.96725693,84.919,84.851,3.90094614]
[1770461522582,35.51,84.943,84.81,10.92721316]
[1770461522583,3.96725693,84.899,84.825,3.90094614]
[1770461522783,3.96725693,84.879,84.825,3.90094614]
[1770461523379,3.96725693,84.899,84.831,3.90094614]
[1770461523786,3.96725693,84.919,84.851,3.90094614]
[1770461524079,3.96725693,84.919,84.871,3.90094614]
[1770461524586,3.96725693,84.939,84.871,3.90094614]
[1770461524787,3.96725693,84.937,84.871,3.90094614]
[1770461525382,3.96725693,84.937,84.882,10.609]
[1770461525581,3.96725693,84.937,84.883,3.90094614]
[1770461526082,3.96725693,84.937,84.884,10.6088]
[1770461526481,3.96725693,84.937,84.883,3.90094614]
[1770461526482,3.6743729,84.928,84.883,3.90094614]
[1770461526681,3.6743729,84.928,84.876,3.97437151]
[1770461527888,3.6743729,84.928,84.878,3.97437151]
[1770461529393,14.88772979,84.96,84.89,10.6079]
[1770461529394,3.6743729,84.942,84.89,10.6079]
[1770461530780,3.6743729,84.942,84.881,3.6910027]
[1770461531081,3.75370685,84.936,84.881,3.6910027]
[1770461531286,14.88772979,84.96,84.881,3.6910027]
[1770461531287,3.75370685,84.957,84.881,3.6910027]
[1770461531595,3.75370685,84.947,84.885,3.6910027]
[1770461532087,21.47370133,84.994,84.85,14.88772979]
[1770461532088,3.75370685,84.919,84.856,3.6910027]
[1770461533795,3.75370685,84.916,84.856,3.6910027]
[1770461535185,3.75370685,84.913,84.837,3.6910027]
[1770461535894,3.75370685,84.899,84.837,3.6910027]
[1770461536795,3.75370685,84.899,84.838,3.6910027]
[1770461537692,3.75370685,84.896,84.838,3.6910027]
[1770461538799,3.75370685,84.893,84.838,3.6910027]
[1770461539797,3.75370685,84.893,84.839,3.6910027]
[1770461539996,3.75370685,84.909,84.851,3.6910027]
[1770461541799,3.75370685,84.909,84.858,3.6910027]
[1770461542300,3.75370685,84.909,84.862,3.6910027]
[1770461542498,3.75370685,84.923,84.862,3.6910027]
[1770461542890,3.75370685,84.909,84.849,14.3041027]
[1770461543102,3.75370685,84.909,84.85,3.6910027]
[1770461543398,3.75370685,84.909,84.853,3.6910027]
[1770461544708,3.75370685,84.923,84.861,3.6910027]
[1770461545506,3.75370685,84.921,84.869,3.6910027]
[1770461547507,3.75370685,84.921,84.87,14.3015027]
[1770461548007,3.75370685,84.921,84.871,3.6910027]
[1770461548602,3.75370685,84.921,84.874,10.61]
[1770461549405,3.75370685,84.918,84.871,3.6910027]
[1770461552009,3.75370685,84.931,84.879,3.6910027]
[1770461552506,3.75370685,84.929,84.88,10.6092]
[1770461552705,3.75370685,84.929,84.879,3.6910027]
[1770461553713,3.75370685,84.927,84.879,3.6910027]
[1770461554411,3.75370685,84.925,84.879,3.6910027]
[1770461555706,14.88064853,84.94,84.879,3.6910027]
[1770461555707,3.75370685,84.921,84.879,3.6910027]
[1770461556010,3.75370685,84.921,84.861,3.83512227]
[1770461556912,3.88231873,84.92,84.865,3.83512227]
[1770461557815,3.88231873,84.92,84.874,10.6099]
[1770461558116,3.88231873,84.92,84.875,3.83512227]
[1770461558316,3.88231873,84.92,84.882,3.83512227]
[1770461558518,3.88231873,84.933,84.882,3.83512227]
[1770461559712,3.88231873,84.933,84.883,10.6089]
[1770461559916,3.88231873,84.933,84.884,3.83512227]
[1770461563020,3.88231873,84.927,84.884,3.83512227]
[1770461564507,10.6024,84.936,84.886,3.83512227]
[1770461564708,3.88231873,84.939,84.886,3.83512227]
[1770461565523,3.88231873,84.953,84.896,3.83512227]
[1770461566818,3.88231873,84.953,84.907,10.6059]
[1770461567122,3.88231873,84.953,84.896,3.83512227]
[1770461567522,3.88231873,84.949,84.901,3.83512227]
[1770461569121,3.88231873,84.939,84.89,4.99282873]
[1770461569328,4.99282873,84.93,84.888,3.83512227]
[1770461569727,8.87514746,84.93,84.888,3.83512227]
[1770461571425,3.88231873,84.93,84.89,4.99282873]
[1770461571624,3.88231873,84.919,84.874,3.83512227]
[1770461571931,4.99282873,84.9,84.861,3.83512227]
[1770461572334,3.88231873,84.909,84.861,3.83512227]
[1770461573026,10.6063,84.905,84.861,3.83512227]
[1770461573219,4.99282873,84.9,84.861,3.83512227]
[1770461573425,10.6063,84.905,84.861,3.83512227]
[1770461573730,3.88231873,84.909,84.863,3.83512227]
[1770461574229,10.6071,84.898,84.863,3.83512227]
[1770461575726,10.606,84.907,84.863,3.83512227]
[1770461575930,3.88231873,84.909,84.863,3.83512227]
[1770461576521,3.88231873,84.922,84.873,3.83512227]
[1770461577326,3.88231873,84.911,84.861,3.83512227]
[1770461578434,3.88231873,84.911,84.874,10.61]
[1770461578834,3.88231873,84.911,84.861,3.83512227]
[1770461579626,14.87555184,84.93,84.86,14.87555184]
[1770461579627,3.88231873,84.926,84.875,3.83512227]
[1770461580330,3.88231873,84.926,84.881,10.6091]
[1770461582231,3.88231873,84.951,84.891,3.83512227]
[1770461583323,3.88231873,84.951,84.89,14.87555184]
[1770461583324,3.88231873,84.951,84.922,10.6039]
[1770461583523,3.88231873,84.977,84.922,10.6039]
[1770461584030,3.88231873,84.977,84.929,3.83512227]
[1770461584935,3.88231873,84.977,84.931,3.83512227]
[1770461585125,3.88231873,84.977,84.917,3.83512227]
[1770461585321,3.88231873,84.977,84.921,3.83512227]
[1770461586833,3.88231873,84.977,84.929,3.81139988]
[1770461587937,3.88231873,84.977,84.933,3.81139988]
[1770461588737,3.88231873,84.977,84.934,3.81139988]
[1770461589126,3.95147069,84.993,84.941,3.81139988]
[1770461589533,3.95147069,84.993,84.928,3.81139988]